Workbook

Sheet 1-4 класс на сентябрь 2024
B1: "УТВЕРЖДАЮ"
A2: Директор МБОУ "Ивановская ООШ"
A3: ____________Павлова В.В.
A4: 1-4 классы на 2.09 | C4: 2024 год
A5: Наименование блюд | B5: Выход,г | C5: Белки,г | D5: Жиры,г | E5: Углеводы,г | F5: Калорийность,ккал
A6: Салат из моркови с яблоками | B6: 60 | C6: 0.64 | D6: 3.01 | E6: 5.11 | F6: 50.91
A7: Котлета из мяса птицы | B7: 90 | C7: 10.20 | D7: 12.93 | E7: 13.79 | F7: 198.00
A8: Макаронные изделия отварные с маслом сливочным | B8: 150/5 | C8: 5.70 | D8: 4.30 | E8: 31.99 | F8: 189.30
A9: компот из сухофруктов (75С) | B9: 200 | C9: 0.66 | D9: 0.09 | E9: 22.03 | F9: 92.80
A10: Хлеб ржаной | B10: 30 | C10: 1.98 | D10: 0.36 | E10: 11.88 | F10: 59.40
B11: 535 | C11: 19.18 | D11: 20.69 | E11: 84.80 | F11: 590.41
A12: Бухгалтер ООО "ФУДСС" | D12: Хамидуллина Р.А.
A13: Зав. производством_____________О.В.Симон
B15: "УТВЕРЖДАЮ"
A16: Директор МБОУ "Ивановская ООШ"
A17: ____________Павлова В.В.
A18: 1-4 классы на 3.09 | C18: 2024 год
A19: Наименование блюд | B19: Выход,г | C19: Белки,г | D19: Жиры,г | E19: Углеводы,г | F19: Калорийность,ккал
A20: Плоды и ягоды свежие (яблоки) | B20: 100 | C20: 0.40 | D20: 0.40 | E20: 9.80 | F20: 47.00
A21: Сырники из творога с молочной кашей "Дружба" с маслом сливочным | B21: 60/150/5 | C21: 13.65 | D21: 15.29 | E21: 32.32 | F21: 330.90
A22: Чай с сахаром | B22: 190/10 | C22: 0.07 | D22: 0.02 | E22: 10.01 | F22: 40.00
A23: Хлеб ржаной | B23: 30 | C23: 1.98 | D23: 0.36 | E23: 11.38 | F23: 59.40
A24: Итого: | B24: 545 | C24: =SUM(C20:C23) -> 16.10 | D24: 16.07 | E24: 64.01 | F24: 477.30
A25: Бухгалтер ООО "ФУДСС" | D25: Хамидуллина Р.А.
A26: Зав. производством_____________О.В.Симон
B28: "УТВЕРЖДАЮ"
A29: Директор МБОУ "Ивановская ООШ"
A30: ____________Павлова В.В.
A31: 1-4 классы на 4.09 | C31: 2024 год
A32: Наименование блюд | B32: Выход,г | C32: Белки,г | D32: Жиры,г | E32: Углеводы,г | F32: Калорийность,ккал
A33: Сыр порционно | B33: 10 | C33: 2.63 | D33: 2.66 | E33: 0.00 | F33: 34.33
A34: Гуляш из говядины | B34: 50/50 | C34: 10.39 | D34: 14.79 | E34: 10.30 | F34: 221.00
A35: Каша гречневая рассыпчатая | B35: 150 | C35: 3.77 | D35: 2.29 | E35: 39.72 | F35: 214.00
A36: Чай с сахаром, с лимоном | B36: 185/10/5 | C36: 0.11 | D36: 0.02 | E36: 10.15 | F36: 41.32
A37: Хлеб ржаной | B37: 50 | C37: 3.30 | D37: 0.60 | E37: 19.80 | F37: 99.00
A38: Итого: | B38: 510 | C38: =SUM(C33:C37) -> 20.20 | D38: =SUM(D33:D37) -> 20.36 | E38: 79.97 | F38: 609.65
A39: Бухгалтер ООО "ФУДСС" | D39: Хамидуллина Р.А.
A40: Зав. производством_____________О.В.Симон
B42: "УТВЕРЖДАЮ"
A43: Директор МБОУ "Ивановская ООШ"
A44: ____________Павлова В.В.
A45: 1-4 классы на 5.09 | C45: 2024 год
A46: Наименование блюд | B46: Выход,г | C46: Белки,г | D46: Жиры,г | E46: Углеводы,г | F46: Калорийность,ккал
A47: Свекла отварная дольками | B47: 60 | C47: 1.08 | D47: 0.06 | E47: 5.88 | F47: 28.80
A48: Котлета из мяса птицы | B48: 90 | C48: 10.20 | D48: 12.93 | E48: 13.79 | F48: 198.00
A49: Пюре картофельное с маслом сливочным | B49: 150/3 | C49: 3.08 | D49: 6.25 | E49: 20.47 | F49: 150.45
A50: Чай с сахаром, с яблоком | B50: 180/10/10 | C50: 0.11 | D50: 0.06 | E50: 10.98 | F50: 44.70
A51: Хлеб пшеничный | B51: 30 | C51: 2.28 | D51: 0.24 | E51: 14.76 | F51: 70.50
A52: Хлеб ржаной | B52: 40 | C52: 2.64 | D52: 0.48 | E52: 15.84 | F52: 79.20
A53: Итого: | B53: 573 | C53: =C47+C48+C49+C50+C51+C52 -> 19.39 | D53: =D47+D48+D49+D50+D51+D52 -> 20.02 | E53: 81.72 | F53: 571.65
A54: Бухгалтер ООО "ФУДСС" | D54: Хамидуллина Р.А.
A55: Зав. производством_____________О.В.Симон
B57: "УТВЕРЖДАЮ"
A58: Директор МБОУ "Ивановская ООШ"
A59: ____________Павлова В.В.
A60: 1-4 классы на 6.09 | C60: 2024 год
A61: Наименование блюд | B61: Выход,г | C61: Белки,г | D61: Жиры,г | E61: Углеводы,г | F61: Калорийность,ккал
A62: Сыр порционно | B62: 15 | C62: 3.95 | D62: 3.99 | E62: 0.00 | F62: 51.50
A63: Тефтели мясные в сметанно- томатном соусе | B63: 60,4 | C63: 7.284 | D63: 11.94 | E63: 8.36 | F63: 124.00
A64: Макаронные изделия отварные с маслом сливочным | B64: 180/5 | C64: 5.10 | D64: 3.62 | E64: 31.96 | F64: 176.10
A65: Напиток из свежих фруктов (75С) | B65: 200 | C65: 0.34 | D65: 0.17 | E65: 21.46 | F65: 103.50
A66: Хлеб пшеничный | B66: 45 | C66: 3.42 | D66: 0.36 | E66: 22.14 | F66: 105.75
A67: Итого: | B67: 545 | C67: =SUM(C62:C66) -> 20.09 | D67: =SUM(D62:D66) -> 20.08 | E67: =SUM(E62:E66) -> 83.92 | F67: 560.84
A68: Зав. производством_____________О.В.Симон
A69: Бухгалтер ООО "ФУДСС" | D69: Хамидуллина Р.А.
B71: "УТВЕРЖДАЮ"
A72: Директор МБОУ "Ивановская ООШ"
A73: ____________Павлова В.В.
A74: 1-4 классы на 7.09 | C74: 2024 год
A75: Наименование блюд | B75: Выход,г | C75: Белки,г | D75: Жиры,г | E75: Углеводы,г | F75: Калорийность,ккал
A76: Салат из свежей капусты с мрковью | B76: 80 | C76: 1.05 | D76: 2.60 | E76: 5.17 | F76: 48.32
A77: Биточки рыбные | B77: 90 | C77: 13.170 | D77: 10.70 | E77: 15.79 | F77: 193.30
A78: Рис отварной рассыпчатый с маслом сливочным | B78: 150/3 | C78: 3.63 | D78: 6.50 | E78: 37.58 | F78: 223.35
A79: Чай с сахаром с лимоном | B79: 185/10/5 | C79: 0.11 | D79: 0.02 | E79: 10.15 | F79: 41.32
A80: Хлеб ржаной | B80: 30 | C80: 1.98 | D80: 0.36 | E80: 11.88 | F80: 59.40
B81: 553 | C81: 19.94 | D81: 20.18 | E81: 80.57 | F81: 565.69
A82: Зав. производством_____________О.В.Симон
A83: Бухгалтер ООО "ФУДСС" | D83: Хамидуллина Р.А.
B85: "УТВЕРЖДАЮ"
A86: Директор МБОУ "Ивановская ООШ"
A87: ____________Павлова В.В.
A88: 1-4 классы на 9.09 | C88: 2024 год
A89: Наименование блюд | B89: Выход,г | C89: Белки,г | D89: Жиры,г | E89: Углеводы,г | F89: Калорийность,ккал
A90: Сырники из творога с кашей пшеной молочной с маслом сливочным | B90: 60/180/5 | C90: 16.02 | D90: 18.13 | E90: 42.98 | F90: 386.40
A91: Чай витаминный с шиповником | B91: 185/10/5 | C91: 0.240 | D91: 0.09 | E91: 12.43 | F91: 54.20
A92: Хлеб пшеничный | B92: 25 | C92: 1.90 | D92: 0.20 | E92: 12.30 | F92: 58.75
A93: Хлеб ржаной | B93: 30 | C93: 1.98 | D93: 0.36 | E93: 11.88 | F93: 59.40
B94: 500 | C94: 20.14 | D94: 18.78 | E94: 79.59 | F94: 558.75
A95: Зав. производством_____________О.В.Симон
A96: Бухгалтер ООО "ФУДСС" | D96: Хамидуллина Р.А.
B98: "УТВЕРЖДАЮ"
A99: Директор МБОУ "Ивановская ООШ"
A100: ____________Павлова В.В.
A101: 1-4 классы на 10.09 | C101: 2024 год
A102: Наименование блюд | B102: Выход,г | C102: Белки,г | D102: Жиры,г | E102: Углеводы,г | F102: Калорийность,ккал
A103: Плоды и ягоды свежие (яблоки) | B103: 100 | C103: 0.40 | D103: 0.40 | E103: 9.80 | F103: 47.00
A104: Плов из говядины с рисовой крупой | B104: 50/150 | C104: 15.95 | D104: 19.55 | E104: 39.75 | F104: 408.42
A105: Чай с сахаром | B105: 190/10 | C105: 0.07 | D105: 0.02 | E105: 10.01 | F105: 40.00
A106: Хлеб пшеничный | B106: 25 | C106: 1.90 | D106: 0.20 | E106: 12.30 | F106: 58.75
A107: Хлеб ржаной | B107: 20 | C107: 1.32 | D107: 0.24 | E107: 7.92 | F107: 39.60
A108: Итого: | B108: 545 | C108: =SUM(C103:C107) -> 19.64 | D108: =SUM(D103:D107) -> 20.41 | E108: 79.78 | F108: 593.77
A109: Бухгалтер ООО "ФУДСС" | D109: Хамидуллина Р.А.
A110: Зав. производством_____________О.В.Симон
B112: "УТВЕРЖДАЮ"
A113: Директор МБОУ "Ивановская ООШ"
A114: ____________Павлова В.В.
A115: 1-4 классы на 11.09 | C115: 2024 год
A116: Наименование блюд | B116: Выход,г | C116: Белки,г | D116: Жиры,г | E116: Углеводы,г | F116: Калорийность,ккал
A117: Салат из отварной свеклы | B117: 60 | C117: 0.84 | D117: 3.61 | E117: 4.96 | F117: 55.68
A118: Рыба, тушенная в томате с овощами | B118: 50/50 | C118: 9.05 | D118: 6.09 | E118: 3.80 | F118: 105.00
A119: Пюре картофельное с маслом сливочным | B119: 150/3 | C119: 3.08 | D119: 6.25 | E119: 20.47 | F119: 150.45
A120: Компот из свежих яблок (75С) | B120: 200 | C120: 0.16 | D120: 0.16 | E120: 17.90 | F120: 74.60
A121: Хлеб пшеничный | B121: 35 | C121: 2.66 | D121: 0.28 | E121: 17.22 | F121: 82.25
A122: Итого: | B122: 548 | C122: 15.79 | D122: 16.39 | E122: 64.34 | F122: 467.98
A123: Бухгалтер ООО "ФУДСС" | D123: Хамидуллина Р.А.
A124: Зав. производством_____________О.В.Симон
B126: "УТВЕРЖДАЮ"
A127: Директор МБОУ "Ивановская ООШ"
A128: ____________Павлова В.В.
A129: 1-4 классы на 12.09 | C129: 2024 год
A130: Наименование блюд | B130: Выход,г | C130: Белки,г | D130: Жиры,г | E130: Углеводы,г | F130: Калорийность,ккал
A131: Тефтели куриные с гречневой крупой в сметанно-томатном соусе | B131: 60/40 | C131: 3.17 | D131: 5.19 | E131: 9.85 | F131: 118.01
A132: Макаронные изделия отварные с маслом сливочным | B132: 180/3 | C132: 6.64 | D132: 7.60 | E132: 31.78 | F132: 221.94
A133: Какао с молоком | B133: 200 | C133: 4.08 | D133: 3.54 | E133: 7.60 | F133: 78.60
A134: Хлеб пшеничный | B134: 30 | C134: 2.28 | D134: 0.24 | E134: 14.76 | F134: 70.50
A135: Итого: | B135: 513 | C135: =C131+C132+C133+C134 -> 16.17 | D135: 16.57 | E135: 63.98 | F135: 489.05
A136: Бухгалтер ООО "ФУДСС" | D136: Хамидуллина Р.А.
A137: Зав. производством_____________О.В.Симон
B139: "УТВЕРЖДАЮ"
A140: Директор МБОУ "Ивановская ООШ"
A141: ____________Павлова В.В.
A142: 1-4 классы на 13.09 | C142: 2024 год
A143: Наименование блюд | B143: Выход,г | C143: Белки,г | D143: Жиры,г | E143: Углеводы,г | F143: Калорийность,ккал
A144: Плоды и ягоды свежие (яблоки) | B144: 100 | C144: 0.40 | D144: 0.40 | E144: 9.80 | F144: 47.00
A145: Овощи тушеные с мясом | B145: 50/150 | C145: 12.48 | D145: 15.68 | E145: 19.34 | F145: 271.50
A146: Компот из сухофруктов (75С) | B146: 200 | C146: 0.66 | D146: 0.09 | E146: 22.03 | F146: 92.80
A147: Хлеб пшеничный | B147: 30 | C147: 2.28 | D147: 0.24 | E147: 14.76 | F147: 70.50
A148: Итого: | B148: 530 | C148: =SUM(C144:C147) -> 15.82 | D148: =SUM(D144:D147) -> 16.41 | E148: 65.93 | F148: 481.80
B150: "УТВЕРЖДАЮ"
A151: Директор МБОУ "Ивановская ООШ"
A152: ____________Павлова В.В.
A153: 1-4 классы на 14.09 | C153: 2024 год
A154: Салат из свежей капусты с морковью | B154: 80 | C154: 1.05 | D154: 2.60 | E154: 5.17 | F154: 48.32
A155: Котлеты "Аппетитные" | B155: 90 | C155: 12.90 | D155: 12.15 | E155: 13.15 | F155: 214.20
A156: Каша гречневая рассыпчатая с маслом сливочным | B156: 150/3 | C156: 3.79 | D156: 4.47 | E156: 39.76 | F156: 233.80
A157: Чай с сахаром, с лимоном | B157: 185/10/5 | C157: 0.11 | D157: 0.02 | E157: 10.15 | F157: 41.32
A158: Хлеб пшеничный | B158: 30 | C158: 2.28 | D158: 0.24 | E158: 14.76 | F158: 70.50
A159: Итого: | B159: 533 | C159: =SUM(C154:C158) -> 20.14 | D159: 19.48 | E159: 82.99 | F159: 608.14
A160: Бухгалтер ООО "ФУДСС" | D160: Хамидуллина Р.А.
A161: Зав. производством_____________О.В.Симон
B163: "УТВЕРЖДАЮ"
A164: Директор МБОУ "Ивановская ООШ"
A165: ____________Павлова В.В.
A166: 1-4 классы на 16.09 | C166: 2024 год
A167: Наименование блюд | B167: Выход,г | C167: Белки,г | D167: Жиры,г | E167: Углеводы,г | F167: Калорийность,ккал
A168: Салат из моркови с яблоками | B168: 60 | C168: 0.64 | D168: 3.01 | E168: 5.11 | F168: 50.91
A169: Котлета из мяса птицы | B169: 90 | C169: 10.20 | D169: 12.93 | E169: 13.79 | F169: 198.00
A170: Макаронные изделия отварные с маслом сливочным | B170: 150/5 | C170: 5.70 | D170: 4.30 | E170: 31.99 | F170: 189.30
A171: компот из сухофруктов (75С) | B171: 200 | C171: 0.66 | D171: 0.09 | E171: 22.03 | F171: 92.80
A172: Хлеб ржаной | B172: 30 | C172: 1.98 | D172: 0.36 | E172: 11.88 | F172: 59.40
B173: 535 | C173: 19.18 | D173: 20.69 | E173: 84.80 | F173: 590.41
A174: Бухгалтер ООО "ФУДСС" | D174: Хамидуллина Р.А.
A175: Зав. производством_____________О.В.Симон
B177: "УТВЕРЖДАЮ"
A178: Директор МБОУ "Ивановская ООШ"
A179: ____________Павлова В.В.
A180: 1-4 классы на 17.09 | C180: 2024 год
A181: Наименование блюд | B181: Выход,г | C181: Белки,г | D181: Жиры,г | E181: Углеводы,г | F181: Калорийность,ккал
A182: Плоды и ягоды свежие (яблоки) | B182: 100 | C182: 0.40 | D182: 0.40 | E182: 9.80 | F182: 47.00
A183: Сырники из творога с молочной кашей "Дружба" с маслом сливочным | B183: 60/150/5 | C183: 13.65 | D183: 15.29 | E183: 32.32 | F183: 330.90
A184: Чай с сахаром | B184: 190/10 | C184: 0.07 | D184: 0.02 | E184: 10.01 | F184: 40.00
A185: Хлеб ржаной | B185: 30 | C185: 1.98 | D185: 0.36 | E185: 11.38 | F185: 59.40
A186: Итого: | B186: 545 | C186: =SUM(C182:C185) -> 16.10 | D186: 16.07 | E186: 64.01 | F186: =SUM(F182:F185) -> 477.30
A187: Бухгалтер ООО "ФУДСС" | D187: Хамидуллина Р.А.
A188: Зав. производством_____________О.В.Симон
B190: "УТВЕРЖДАЮ"
A191: Директор МБОУ "Ивановская ООШ"
A192: ____________Павлова В.В.
A193: 1-4 классы на 18.09 | C193: 2024 год
A194: Наименование блюд | B194: Выход,г | C194: Белки,г | D194: Жиры,г | E194: Углеводы,г | F194: Калорийность,ккал
A195: Сыр порционно | B195: 10 | C195: 2.63 | D195: 2.66 | E195: 0.00 | F195: 34.33
A196: Гуляш из говядины | B196: 50/50 | C196: 10.39 | D196: 14.79 | E196: 10.30 | F196: 221.00
A197: Каша гречневая рассыпчатая | B197: 150 | C197: 3.77 | D197: 2.29 | E197: 39.72 | F197: 214.00
A198: Чай с сахаром, с лимоном | B198: 185/10/5 | C198: 0.11 | D198: 0.02 | E198: 10.15 | F198: 41.32
A199: Хлеб ржаной | B199: 50 | C199: 3.30 | D199: 0.60 | E199: 19.80 | F199: 99.00
A200: Итого: | B200: 510 | C200: =SUM(C195:C199) -> 20.20 | D200: =SUM(D195:D199) -> 20.36 | E200: 79.97 | F200: 609.65
A201: Бухгалтер ООО "ФУДСС" | D201: Хамидуллина Р.А.
A202: Зав. производством_____________О.В.Симон
B204: "УТВЕРЖДАЮ"
A205: Директор МБОУ "Ивановская ООШ"
A206: ____________Павлова В.В.
A207: 1-4 классы на 19.09 | C207: 2024 год
A208: Наименование блюд | B208: Выход,г | C208: Белки,г | D208: Жиры,г | E208: Углеводы,г | F208: Калорийность,ккал
A209: Свекла отварная дольками | B209: 60 | C209: 1.08 | D209: 0.06 | E209: 5.88 | F209: 28.80
A210: Котлета из мяса птицы | B210: 90 | C210: 10.20 | D210: 12.93 | E210: 13.79 | F210: 198.00
A211: Пюре картофельное с маслом сливочным | B211: 150/3 | C211: 3.08 | D211: 6.25 | E211: 20.47 | F211: 150.45
A212: Чай с сахаром, с яблоком | B212: 180/10/10 | C212: 0.11 | D212: 0.06 | E212: 10.98 | F212: 44.70
A213: Хлеб пшеничный | B213: 30 | C213: 2.28 | D213: 0.24 | E213: 14.76 | F213: 70.50
A214: Хлеб ржаной | B214: 40 | C214: 2.64 | D214: 0.48 | E214: 15.84 | F214: 79.20
A215: Итого: | B215: 573 | C215: =C209+C210+C211+C212+C213+C214 -> 19.39 | D215: =D209+D210+D211+D212+D213+D214 -> 20.02 | E215: 81.72 | F215: 571.65
... 113 more rows

Sheet 5-9 кл на сентябрь
B1: "УТВЕРЖДАЮ"
A2: Директор МБОУ "Ивановская ООШ"
A3: ____________Павлова В.В.
A4: 5-9 классы на 2.09 | C4: 2024 год
A5: Наименование блюд | B5: Выход,г | C5: Белки,г | D5: Жиры,г | E5: Углеводы,г | F5: Калорийность,ккал
A6: Салат из моркови с яблоками | B6: 100 | C6: 1.06 | D6: 4.22 | E6: 8.52 | F6: 84.85
A7: Котлета из мяса птицы | B7: 90/150/5 | C7: 15.90 | D7: 19.23 | E7: 45.78 | F7: 387.30
A8: Макаронные изделия отварные с маслом сливочным | B8: 200 | C8: 0.66 | D8: 0.09 | E8: 22.03 | F8: 92.80
A9: компот из сухофруктов (75С) | B9: 25 | C9: 1.90 | D9: 0.02 | E9: 12.30 | F9: 58.75
A10: Хлеб ржаной | B10: 30 | C10: 1.98 | D10: 0.36 | E10: 11.88 | F10: 59.40
B11: 600 | C11: 21.50 | D11: 24.10 | E11: 100.51 | F11: 683.10
A12: Бухгалтер ООО "ФУДСС" | D12: Хамидуллина Р.А.
A13: Зав. производством_____________О.В.Симон
B15: "УТВЕРЖДАЮ"
A16: Директор МБОУ "Ивановская ООШ"
A17: ____________Павлова В.В.
A18: 5-9 классы на 3.09 | C18: 2024 год
A19: Наименование блюд | B19: Выход,г | C19: Белки,г | D19: Жиры,г | E19: Углеводы,г | F19: Калорийность,ккал
A20: Плоды и ягоды свежие (яблоки) | B20: 100 | C20: 0.40 | D20: 0.40 | E20: 9.80 | F20: 47.00
A21: Сырники из творога с молочной кашей "Дружба" с маслом сливочным | B21: 60/180/3 | C21: 15.70 | D21: 16.83 | E21: 41.19 | F21: 376.80
A22: Чай с сахаром | B22: 190/10 | C22: 0.07 | D22: 0.02 | E22: 10.01 | F22: 40.00
A23: Хлеб ржаной | B23: 30 | C23: 1.98 | D23: 0.36 | E23: 11.88 | F23: 59.40
A24: Итого: | B24: 573 | C24: 18.15 | D24: 17.61 | E24: 72.88 | F24: 523.20
A25: Бухгалтер ООО "ФУДСС" | D25: Хамидуллина Р.А.
A26: Зав. производством_____________О.В.Симон
B28: "УТВЕРЖДАЮ"
A29: Директор МБОУ "Ивановская ООШ"
A30: ____________Павлова В.В.
A31: 5-9 классы на 4.09 | C31: 2024 год
A32: Наименование блюд | B32: Выход,г | C32: Белки,г | D32: Жиры,г | E32: Углеводы,г | F32: Калорийность,ккал
A33: Сыр порционно | B33: 10 | C33: 2.63 | D33: 2.66 | E33: 0.00 | F33: 34.33
A34: Гуляш из говядины | B34: 50/50 | C34: 10.39 | D34: 14.79 | E34: 10.30 | F34: 221.00
A35: Каша гречневая рассыпчатая | B35: 180 | C35: 4.52 | D35: 3.75 | E35: 47.66 | F35: 256.80
A36: Чай с сахаром, с лимоном | B36: 185/10/5 | C36: 0.11 | D36: 0.02 | E36: 10.15 | F36: 41.32
A37: Хлеб ржаной | B37: 20 | C37: 1.52 | D37: 0.16 | E37: 9.84 | F37: 47.00
A38: Хлеб пшеничный | B38: 40 | C38: 2.64 | D38: 0.48 | E38: 15.84 | F38: 79.20
A39: Итого: | B39: 550 | C39: 21.82 | D39: 21.86 | E39: 93.79 | F39: 679.65
A40: Бухгалтер ООО "ФУДСС" | D40: Хамидуллина Р.А.
A41: Зав. производством_____________О.В.Симон
B43: "УТВЕРЖДАЮ"
A44: Директор МБОУ "Ивановская ООШ"
A45: ____________Павлова В.В.
A46: 5-9 классы на 5.09 | C46: 2024 год
A47: Наименование блюд | B47: Выход,г | C47: Белки,г | D47: Жиры,г | E47: Углеводы,г | F47: Калорийность,ккал
A48: Свекла отварная дольками | B48: 100 | C48: 1.80 | D48: 9.80 | E48: 48.00 | F48: 0.02
A49: Котлета из мяса птицы Пюре картофельное с маслом сливочным | B49: 90/150/3 | C49: 13.28 | D49: 34.26 | E49: 348.45 | F49: 0.23
A50: Чай с сахаром, с яблоком | B50: 180/10/10 | C50: 0.11 | D50: 10.98 | E50: 44.70 | F50: 0.00
A51: Хлеб пшеничный | B51: 20 | C51: 1.52 | D51: 9.84 | E51: 47.00 | F51: 0.02
A52: Хлеб ржаной | B52: 30 | C52: 1.98 | D52: 11.88 | E52: 59.40 | F52: 0.05
A53: Итого: | B53: 603 | C53: 18.69 | D53: 76.76 | E53: 547.55 | F53: 0.32
A54: Бухгалтер ООО "ФУДСС" | D54: Хамидуллина Р.А.
A55: Зав. производством_____________О.В.Симон
B57: "УТВЕРЖДАЮ"
A58: Директор МБОУ "Ивановская ООШ"
A59: ____________Павлова В.В.
A60: 5-9 классы на 6.09 | C60: 2024 год
A61: Наименование блюд | B61: Выход,г | C61: Белки,г | D61: Жиры,г | E61: Углеводы,г | F61: Калорийность,ккал
A62: Сыр порционно | B62: 10 | C62: 2.63 | D62: 2.66 | E62: 0.00 | F62: 34.33
A63: Тефтели мясные в сметанно- томатном соусе | B63: 60/4 | C63: 7.280 | D63: 11.94 | E63: 8.36 | F63: 123.99
A64: Макаронные изделия отварные с маслом сливочным | B64: 200 | C64: 7.36 | D64: 6.02 | E64: 35.26 | F64: 224.60
A65: Напиток из свежих фруктов (75С) | B65: 200 | C65: 0.34 | D65: 0.17 | E65: 21.46 | F65: 103.50
A66: Хлеб пшеничный | B66: 40 | C66: 2.64 | D66: 0.48 | E66: 15.84 | F66: 79.20
A67: Итого: | B67: 550 | C67: 18.25 | D67: 19.27 | E67: 80.42 | F67: 565.62
A68: Зав. производством_____________О.В.Симон
A69: Бухгалтер ООО "ФУДСС" | D69: Хамидуллина Р.А.
B71: "УТВЕРЖДАЮ"
A72: Директор МБОУ "Ивановская ООШ"
A73: ____________Павлова В.В.
A74: 5-9 классы на 7.09 | C74: 2024 год
A75: Наименование блюд | B75: Выход,г | C75: Белки,г | D75: Жиры,г | E75: Углеводы,г | F75: Калорийность,ккал
A76: Салат из свежей капусты с мрковью | B76: 100 | C76: 1.75 | D76: 4.33 | E76: 6.62 | F76: 90.53
A77: Биточки рыбные Рис отварной рассыпчатый с маслом сливочным | B77: 90/150/3 | C77: 16.800 | D77: 17.20 | E77: 53.36 | F77: 416.65
A78: Чай с сахаром с лимоном | B78: 185/10/5 | C78: 0.11 | D78: 0.02 | E78: 10.15 | F78: 41.32
A79: Хлеб ржаной | B79: 50 | C79: 3.30 | D79: 0.60 | E79: 19.80 | F79: 99.00
A80: итого | B80: 593 | C80: 21.96 | D80: 22.15 | E80: 91.94 | F80: 647.50
A81: Зав. производством_____________О.В.Симон
A82: Бухгалтер ООО "ФУДСС" | D82: Хамидуллина Р.А.
B84: "УТВЕРЖДАЮ"
A85: Директор МБОУ "Ивановская ООШ"
A86: ____________Павлова В.В.
A87: 5-9 классы на 9.09 | C87: 2024 год
A88: Наименование блюд | B88: Выход,г | C88: Белки,г | D88: Жиры,г | E88: Углеводы,г | F88: Калорийность,ккал
A89: Сырники из творога с кашей пшеной молочной с маслом сливочным | B89: 60/220/3 | C89: 17.90 | D89: 21.21 | E89: 47.96 | F89: 442.60
A90: Чай витаминный с шиповником | B90: 185/10/5 | C90: 0.240 | D90: 0.09 | E90: 12.43 | F90: 54.20
A91: Хлеб пшеничный | B91: 30 | C91: 2.28 | D91: 0.24 | E91: 14.76 | F91: 70.50
A92: Хлеб ржаной | B92: 40 | C92: 2.64 | D92: 0.48 | E92: 15.84 | F92: 79.20
B93: 553 | C93: 23.06 | D93: 22.02 | E93: 90.99 | F93: 646.50
A94: Зав. производством_____________О.В.Симон
A95: Бухгалтер ООО "ФУДСС" | D95: Хамидуллина Р.А.
B97: "УТВЕРЖДАЮ"
A98: Директор МБОУ "Ивановская ООШ"
A99: ____________Павлова В.В.
A100: 5-9 классы на 10.09 | C100: 2024 год
A101: Наименование блюд | B101: Выход,г | C101: Белки,г | D101: Жиры,г | E101: Углеводы,г | F101: Калорийность,ккал
A102: Плоды и ягоды свежие (яблоки) | B102: 100 | C102: 0.40 | D102: 0.40 | E102: 9.80 | F102: 47.00
A103: Плов из говядины с рисовой крупой | B103: 50/150 | C103: 18.97 | D103: 23.12 | E103: 51.79 | F103: 509.80
A104: Чай с сахаром | B104: 190/10 | C104: 0.07 | D104: 0.02 | E104: 10.01 | F104: 40.00
A105: Хлеб пшеничный | B105: 20 | C105: 1.52 | D105: 0.16 | E105: 9.84 | F105: 47.00
A106: Хлеб ржаной | B106: 30 | C106: 1.98 | D106: 0.36 | E106: 11.88 | F106: 59.40
A107: Итого: | B107: 600 | C107: =SUM(C102:C106) -> 22.94 | D107: =SUM(D102:D106) -> 24.06 | E107: 93.32 | F107: 703.20
A108: Бухгалтер ООО "ФУДСС" | D108: Хамидуллина Р.А.
A109: Зав. производством_____________О.В.Симон
B111: "УТВЕРЖДАЮ"
A112: Директор МБОУ "Ивановская ООШ"
A113: ____________Павлова В.В.
A114: 5-9 классы на 11.09 | C114: 2024 год
A115: Наименование блюд | B115: Выход,г | C115: Белки,г | D115: Жиры,г | E115: Углеводы,г | F115: Калорийность,ккал
A116: Рыба, тушенная в томате с овощами | B116: 50/50 | C116: 9.05 | D116: 6.09 | E116: 3.80 | F116: 105.00
A117: Пюре картофельное | B117: 180 | C117: 3.68 | D117: 5.76 | E117: 24.53 | F117: 164.70
A118: Компот из свежих яблок (75С) | B118: 200 | C118: 0.16 | D118: 0.16 | E118: 17.90 | F118: 74.60
A119: Хлеб пшеничный | B119: 30 | C119: 2.28 | D119: 0.24 | E119: 14.76 | F119: 70.50
A120: Хлеб ржаной | B120: 40 | C120: 2.64 | D120: 0.48 | E120: 15.84 | F120: 79.20
A121: Итого: | B121: 550 | C121: 17.81 | D121: 18.49 | E121: 76.83 | F121: 564.50
A122: Бухгалтер ООО "ФУДСС" | D122: Хамидуллина Р.А.
A123: Зав. производством_____________О.В.Симон
B125: "УТВЕРЖДАЮ"
A126: Директор МБОУ "Ивановская ООШ"
A127: ____________Павлова В.В.
A128: 5-9 классы на 12.09 | C128: 2024 год
A129: Наименование блюд | B129: Выход,г | C129: Белки,г | D129: Жиры,г | E129: Углеводы,г | F129: Калорийность,ккал
A130: Тефтели куриные с гречневой крупой в сметанно-томатном соусе | B130: 60/40 | C130: 3.17 | D130: 5.19 | E130: 9.85 | F130: 118.01
A131: Макаронные изделия отварные с маслом сливочным | B131: 200 | C131: 7.36 | D131: 6.02 | E131: 35.26 | F131: 224.60
A132: Чай витаминный с шиповником | B132: 185/10/5 | C132: 0.24 | D132: 0.09 | E132: 12.43 | F132: 54.20
A133: Хлеб пшеничный | B133: 30 | C133: 2.28 | D133: 0.24 | E133: 14.76 | F133: 70.50
A134: Хлеб ржаной | B134: 30 | C134: 1.98 | D134: 0.36 | E134: 11.88 | F134: 59.40
A135: Итого: | B135: 560 | C135: 18.19 | D135: 17.48 | E135: 74.33 | F135: 526.71
A136: Бухгалтер ООО "ФУДСС" | D136: Хамидуллина Р.А.
A137: Зав. производством_____________О.В.Симон
B139: "УТВЕРЖДАЮ"
A140: Директор МБОУ "Ивановская ООШ"
A141: ____________Павлова В.В.
A142: 5-9 классы на 13.09 | C142: 2024 год
A143: Наименование блюд | B143: Выход,г | C143: Белки,г | D143: Жиры,г | E143: Углеводы,г | F143: Калорийность,ккал
A144: Плоды и ягоды свежие (яблоки) | B144: 100 | C144: 0.40 | D144: 0.40 | E144: 9.80 | F144: 47.00
A145: Овощи тушеные с мясом | B145: 50/150 | C145: 12.48 | D145: 15.68 | E145: 19.34 | F145: 271.50
A146: Компот из сухофруктов (75С) | B146: 200 | C146: 0.66 | D146: 0.09 | E146: 22.03 | F146: 92.80
A147: Хлеб пшеничный | B147: 30 | C147: 2.28 | D147: 0.24 | E147: 14.76 | F147: 70.50
A148: Хлеб ржаной | B148: 30 | C148: 1.98 | D148: 0.36 | E148: 11.88 | F148: 59.40
A149: Итого: | B149: 560 | C149: =SUM(C144:C148) -> 17.80 | D149: 17.77 | E149: =SUM(E144:E148) -> 77.81 | F149: =SUM(F144:F148) -> 541.20
B151: "УТВЕРЖДАЮ"
A152: Директор МБОУ "Ивановская ООШ"
A153: ____________Павлова В.В.
A154: 1-4 классы на 14.09 | C154: 2024 год
A155: Салат из свежей капусты с морковью | B155: 100 | C155: 1.75 | D155: 4.33 | E155: 8.62 | F155: 90.53
A156: Каша гречневая рассыпчатая с маслом сливочным Котлеты "Аппетитные" | B156: 75/150/3 | C156: 15.16 | D156: 16.19 | E156: 44.63 | F156: 386.76
A157: Чай с сахаром, с лимоном | B157: 185/10/5 | C157: 0.11 | D157: 0.02 | E157: 10.15 | F157: 41.32
A158: Хлеб ржаной | B158: 25 | C158: 1.65 | D158: 0.30 | E158: 9.90 | F158: 49.50
A159: Итого: | B159: 533 | C159: =SUM(C155:C158) -> 18.67 | D159: 19.24 | E159: =SUM(E155:E158) -> 73.30 | F159: =SUM(F155:F158) -> 568.11
A160: Бухгалтер ООО "ФУДСС" | D160: Хамидуллина Р.А.
A161: Зав. производством_____________О.В.Симон
B163: "УТВЕРЖДАЮ"
A164: Директор МБОУ "Ивановская ООШ"
A165: ____________Павлова В.В.
A166: 5-9 классы на 16.09 | C166: 2024 год
A167: Наименование блюд | B167: Выход,г | C167: Белки,г | D167: Жиры,г | E167: Углеводы,г | F167: Калорийность,ккал
A168: Салат из моркови с яблоками | B168: 100 | C168: 1.06 | D168: 4.22 | E168: 8.52 | F168: 84.85
A169: Котлета из мяса птицы | B169: 90/150/5 | C169: 15.90 | D169: 19.23 | E169: 45.78 | F169: 387.30
A170: Макаронные изделия отварные с маслом сливочным | B170: 200 | C170: 0.66 | D170: 0.09 | E170: 22.03 | F170: 92.80
A171: компот из сухофруктов (75С) | B171: 25 | C171: 1.90 | D171: 0.02 | E171: 12.30 | F171: 58.75
A172: Хлеб ржаной | B172: 30 | C172: 1.98 | D172: 0.36 | E172: 11.88 | F172: 59.40
B173: 600 | C173: 21.50 | D173: 24.10 | E173: 100.51 | F173: 683.10
A174: Бухгалтер ООО "ФУДСС" | D174: Хамидуллина Р.А.
A175: Зав. производством_____________О.В.Симон
B177: "УТВЕРЖДАЮ"
A178: Директор МБОУ "Ивановская ООШ"
A179: ____________Павлова В.В.
A180: 5-9 классы на 17.09 | C180: 2024 год
A181: Наименование блюд | B181: Выход,г | C181: Белки,г | D181: Жиры,г | E181: Углеводы,г | F181: Калорийность,ккал
A182: Плоды и ягоды свежие (яблоки) | B182: 100 | C182: 0.40 | D182: 0.40 | E182: 9.80 | F182: 47.00
A183: Сырники из творога с молочной кашей "Дружба" с маслом сливочным | B183: 60/180/3 | C183: 15.70 | D183: 16.83 | E183: 41.19 | F183: 376.80
A184: Чай с сахаром | B184: 190/10 | C184: 0.07 | D184: 0.02 | E184: 10.01 | F184: 40.00
A185: Хлеб ржаной | B185: 30 | C185: 1.98 | D185: 0.36 | E185: 11.88 | F185: 59.40
A186: Итого: | B186: 573 | C186: 18.15 | D186: 17.61 | E186: 72.88 | F186: 523.20
A187: Бухгалтер ООО "ФУДСС" | D187: Хамидуллина Р.А.
A188: Зав. производством_____________О.В.Симон
B190: "УТВЕРЖДАЮ"
A191: Директор МБОУ "Ивановская ООШ"
A192: ____________Павлова В.В.
A193: 5-9 классы на 18.09 | C193: 2024 год
A194: Наименование блюд | B194: Выход,г | C194: Белки,г | D194: Жиры,г | E194: Углеводы,г | F194: Калорийность,ккал
A195: Сыр порционно | B195: 10 | C195: 2.63 | D195: 2.66 | E195: 0.00 | F195: 34.33
A196: Гуляш из говядины | B196: 50/50 | C196: 10.39 | D196: 14.79 | E196: 10.30 | F196: 221.00
A197: Каша гречневая рассыпчатая | B197: 180 | C197: 4.52 | D197: 3.75 | E197: 47.66 | F197: 256.80
A198: Чай с сахаром, с лимоном | B198: 185/10/5 | C198: 0.11 | D198: 0.02 | E198: 10.15 | F198: 41.32
A199: Хлеб ржаной | B199: 20 | C199: 1.52 | D199: 0.16 | E199: 9.84 | F199: 47.00
A200: Хлеб пшеничный | B200: 40 | C200: 2.64 | D200: 0.48 | E200: 15.84 | F200: 79.20
A201: Итого: | B201: 550 | C201: 21.82 | D201: 21.86 | E201: 93.79 | F201: 679.65
A202: Бухгалтер ООО "ФУДСС" | D202: Хамидуллина Р.А.
A203: Зав. производством_____________О.В.Симон
B205: "УТВЕРЖДАЮ"
A206: Директор МБОУ "Ивановская ООШ"
A207: ____________Павлова В.В.
A208: 5-9 классы на 19.09 | C208: 2024 год
A209: Наименование блюд | B209: Выход,г | C209: Белки,г | D209: Жиры,г | E209: Углеводы,г | F209: Калорийность,ккал
A210: Свекла отварная дольками | B210: 100 | C210: 1.80 | D210: 9.80 | E210: 48.00 | F210: 0.02
A211: Котлета из мяса птицы Пюре картофельное с маслом сливочным | B211: 90/150/3 | C211: 13.28 | D211: 34.26 | E211: 348.45 | F211: 0.23
A212: Чай с сахаром, с яблоком | B212: 180/10/10 | C212: 0.11 | D212: 10.98 | E212: 44.70 | F212: 0.00
A213: Хлеб пшеничный | B213: 20 | C213: 1.52 | D213: 9.84 | E213: 47.00 | F213: 0.02
A214: Хлеб ржаной | B214: 30 | C214: 1.98 | D214: 11.88 | E214: 59.40 | F214: 0.05
A215: Итого: | B215: 603 | C215: 18.69 | D215: 76.76 | E215: 547.55 | F215: 0.32
... 113 more rows
